fUST/lending_fUST_20240423
["ID","MTS","AMOUNT","RATE_DAILY","PERIOD"]
[323273601,1713862241115,-432.05305535,0.00021917,2]
[323273671,1713862241775,-603.3578092,0.00018851,2]
[323273673,1713862241785,-67.94694465,0.00021917,2]
[323273675,1713862241794,-500.0,0.00021917,2]
[323273677,1713862241803,-500.0,0.00021917,2]
[323273678,1713862241812,-442.90371383,0.00021917,2]
[323273681,1713862241825,-158.73188951,0.00021917,2]
[323273683,1713862241834,-500.0,0.00021917,2]
[323273685,1713862241844,-500.0,0.00021917,2]
[323273686,1713862241853,-500.0,0.00021917,2]
[323273688,1713862241862,-500.0,0.00021917,2]
[323273690,1713862241871,-500.0,0.00021917,2]
[323273692,1713862241880,-500.0,0.00021917,2]
[323273694,1713862241889,-149.11811049,0.00021917,2]
[323273696,1713862241901,-213.90625855,0.00021917,2]
[323273698,1713862241910,-500.0,0.00021917,2]
[323273700,1713862241919,-500.0,0.00021917,2]
[323273702,1713862241928,-500.0,0.00021917,2]
[323273704,1713862241938,-266.35727334,0.00021917,2]
[323273706,1713862241947,-975.76,0.00021917,2]
[323273708,1713862241956,-784.77,0.00021917,2]
[323273710,1713862241965,-686.14,0.00021917,2]
[323273712,1713862241974,-500.0,0.00021917,2]
[323273714,1713862241983,-500.0,0.00021917,2]
[323273715,1713862241992,-757.72,0.00021917,2]
[323273717,1713862242001,-1838.97,0.00021917,2]
[323273719,1713862242011,-500.0,0.00021917,2]
[323273721,1713862242020,-500.0,0.00021917,2]
[323273723,1713862242029,-500.0,0.00021917,2]
[323273725,1713862242039,-3762.72,0.00021917,2]
[323273728,1713862242049,-1966.33,0.00021917,2]
[323273729,1713862242058,-500.0,0.00021917,2]
[323273731,1713862242067,-500.0,0.00021917,2]
[323273733,1713862242077,-500.0,0.00021917,2]
[323273735,1713862242086,-500.0,0.00021917,2]
[323273737,1713862242095,-500.0,0.00021917,2]
[323273738,1713862242104,-678.4,0.00021917,2]
[323273740,1713862242113,-500.0,0.00021917,2]
[323273742,1713862242123,-500.0,0.00021917,2]
[323273744,1713862242133,-500.0,0.00021917,2]
[323273746,1713862242142,-500.0,0.00021917,2]
[323273748,1713862242151,-500.0,0.00021917,2]
[323273750,1713862242161,-500.0,0.00021917,2]
[323273752,1713862242171,-500.0,0.00021917,2]
[323273754,1713862242181,-882.47,0.00021917,2]
[323273757,1713862242190,-500.0,0.00021917,2]
[323273759,1713862242200,-1502.98,0.00021917,2]
[323273761,1713862242210,-500.0,0.00021917,2]
[323273763,1713862242219,-500.0,0.00021917,2]
[323273765,1713862242228,-1499.74,0.00021917,2]
[323273767,1713862242238,-647.9,0.00021917,2]
[323273768,1713862242248,-500.0,0.00021917,2]
[323273770,1713862242258,-500.0,0.00021917,2]
[323273772,1713862242267,-500.0,0.00021917,2]
[323273774,1713862242276,-1444.69,0.00021917,2]
[323273776,1713862242286,-155.40517086,0.00021917,2]
[323273778,1713862242294,-500.0,0.00021917,2]
[323273780,1713862242303,-500.0,0.00021917,2]
[323273782,1713862242313,-2067.42,0.00021917,2]
[323273784,1713862242322,-24250.67,0.00021917,2]
[323273786,1713862242332,-500.0,0.00021917,2]
[323273788,1713862242344,-500.0,0.00021917,2]
[323273790,1713862242353,-500.0,0.00021917,2]
[323273792,1713862242362,-500.0,0.00021917,2]
[323273794,1713862242371,-454.5503124,0.00021917,2]
[323273906,1713862243549,-45.4496876,0.00021917,2]
[323273908,1713862243558,-501.07705741,0.00021917,2]
[323273910,1713862243567,-500.0,0.00021917,2]
[323273912,1713862243576,-157.15569525,0.00021969,2]
[323273914,1713862243585,-420.0,0.00021988,2]
[323273916,1713862243595,-159.06202442,0.00022,2]
[323273918,1713862243604,-500.0,0.0002209,2]
[323273920,1713862243613,-25462.88223527,0.00022091,3]
[323274245,1713862823050,3520.68705436,0.000222,11]
[323274249,1713862839278,2205.53564119,0.000222,11]
[323274252,1713862848049,1665.89856818,0.000222,11]
[323274257,1713862864735,2140.50026144,0.000222,11]
[323274258,1713862873427,358.92683264,0.000222,11]
[323274259,1713862889498,1442.22865105,0.000222,11]
[323274260,1713862897550,694.48222786,0.000222,11]
[323274261,1713862905826,1665.89856818,0.000222,11]
[323274262,1713862913853,1665.89856818,0.000222,11]
[323274265,1713862922621,1665.89856818,0.000222,11]
[323274266,1713862931851,629.44684811,0.000222,11]
[323274268,1713862941165,154.84515485,0.000222,11]
[323274270,1713862949347,204.08167779,0.000222,11]
[323274271,1713862957979,539.63707301,0.000222,11]
[323274273,1713862965977,1311.22668928,0.000222,11]
[323274274,1713862974809,1311.22668928,0.000222,11]
[323274279,1713862983993,629.44684811,0.000222,11]
[323274282,1713863000084,154.84515485,0.000222,11]
[323274283,1713863008230,1869.98024597,0.000222,11]
[323274284,1713863020314,69169.30867749,0.000222,11]
[323274287,1713863134176,-368.29200035,0.00018654,2]
[323274297,1713863237147,-300.0,0.00017926,2]
[323274298,1713863237170,-300.0,0.00017926,2]
[323274299,1713863237191,-24192.15038056,0.00017927,2]
[323274300,1713863237213,-24900.0,0.00018108,2]
[323274301,1713863237234,-442.997156,0.00018301,2]
[323274302,1713863237254,-235.06580885,0.00018654,2]
[323274303,1713863237275,-19184.99388325,0.00018654,2]
[323274304,1713863237295,-221.86358459,0.00018654,2]
[323274305,1713863237314,-287.66756042,0.00018672,2]
[323274306,1713863237335,-343.87101956,0.00018672,2]
[323274307,1713863237355,-189.19295912,0.00019176,2]
[323274308,1713863237375,-615.75933218,0.00019177,2]
[323274309,1713863237395,-164.457335,0.00019178,2]
[323274310,1713863237416,-420.0,0.00019561,2]
[323274311,1713863237437,-420.0,0.00019719,2]
[323274312,1713863237458,-2891.83193782,0.00019817,2]
[323274313,1713863237482,-2000.0,0.000199,2]
[323274314,1713863237502,-1705.55,0.0001999,3]
[323274315,1713863237521,-852.77,0.0001999,3]
[323274316,1713863237541,-426.39,0.0001999,3]
[323274317,1713863237560,-213.19,0.0001999,3]
[323274318,1713863237581,-639.6,0.0001999,3]
[323274319,1713863237600,-12094.73995021,0.00019997,2]
[323274320,1713863237620,-539.63707301,0.00019998,2]
[323274321,1713863237642,-1090.08472256,0.00019998,2]
[323274322,1713863237665,-247.22010741,0.00019998,2]
[323274323,1713863237686,-500.0,0.00019999,2]
[323274324,1713863237705,-589.41137487,0.00019999,2]
[323274325,1713863237726,-304.93401374,0.00019999,2]
[323274326,1713863237747,-442.71151834,0.00019999,2]
[323274327,1713863237768,-172.61406582,0.00019999,2]
[323274328,1713863237788,-14133.60960818,0.0002,2]
[323274329,1713863237807,-2769.07414268,0.0002,2]
[323274330,1713863237826,-689.46452953,0.0002,2]
[323274331,1713863237849,-154.82968734,0.0002,2]
[323274332,1713863237868,-400.0,0.0002,2]
[323274333,1713863237888,-238.88786072,0.0002,2]
[323274334,1713863237907,-319.72058798,0.0002,2]
[323274335,1713863237928,-678.04287141,0.0002,2]
[323274336,1713863237949,-154.82968734,0.0002,2]
[323274337,1713863237970,-154.82968734,0.0002,2]
[323274338,1713863237989,-5459.67159958,0.0002,2]
[323274339,1713863238009,-354.80715765,0.0002,2]
[323274340,1713863238029,-241.51912105,0.0002,2]
[323274341,1713863238053,-5001.20428261,0.0002,2]
[323274342,1713863238074,-1684.01811317,0.0002,2]
[323274343,1713863238094,-183.31048361,0.0002,2]
[323274344,1713863238114,-80000.0,0.0002,2]
[323274345,1713863238135,-524.5590718,0.0002,4]
[323274346,1713863238156,-277.98874346,0.0002,2]
[323274347,1713863238175,-200.0,0.0002,2]
[323274348,1713863238195,-306.0,0.00020178,2]
[323274349,1713863238219,-7925.57647667,0.00021,2]
[323274350,1713863238238,-8530.80015457,0.00021,2]
[323274359,1713863352146,-487.53965329,0.00019798,2]
[323274427,1713863438531,-189.19295912,0.00019598,2]
[323274429,1713863438539,-1404.9522913,0.00019599,2]
[323274431,1713863438549,-615.75933218,0.00019797,2]
[323274433,1713863438558,-300.0,0.00019797,2]
[323274435,1713863438567,-300.0,0.00019797,2]
[323274436,1713863438576,-19184.99388325,0.00019798,2]
[323274439,1713863438586,-200.0,0.00019798,2]
[323274442,1713863438596,-221.86358459,0.00019798,2]
[323274446,1713863438606,-603.3578092,0.00019799,2]
[323274449,1713863438618,-2000.0,0.000199,2]
[323274451,1713863438628,-319.72058798,0.0002,2]
[323274453,1713863438637,-678.04287141,0.0002,2]
[323274456,1713863438647,-277.98874346,0.0002,2]
[323274458,1713863438656,-154.84515485,0.0002,2]
[323274461,1713863438666,-354.80715765,0.0002,2]
[323274463,1713863438676,-154.84515485,0.0002,2]
[323274465,1713863438686,-238.88786072,0.00020092,2]
[323274466,1713863438695,-400.0,0.00020093,2]
[323274469,1713863438705,-524.5590718,0.00020094,4]
[323274470,1713863438714,-154.84515485,0.00020095,2]
[323274472,1713863438724,-241.51912105,0.00020096,2]
[323274475,1713863438734,-5459.67159958,0.00020096,2]
[323274477,1713863438745,-2769.07414268,0.00020097,2]
[323274479,1713863438756,-1927.88795854,0.000201,2]
[323274481,1713863438765,-10117.08160631,0.00021,2]
[323274482,1713863438777,-5400.0,0.00021,2]
[323274484,1713863438786,-1000.0,0.00021,2]
[323274486,1713863438796,-154.84515485,0.00021,2]
[323274488,1713863438805,-7925.57647667,0.00021,2]
[323274491,1713863438815,-3344.28028285,0.00021,2]
[323274493,1713863438824,-5000.0,0.000213,2]
[323274494,1713863438835,-954.1175825,0.00021345,2]
[323274496,1713863438845,-206.9684801,0.0002137,2]
[323274498,1713863438855,-203.583665,0.0002137,2]
[323274500,1713863438866,-420.0,0.00021561,2]
[323274502,1713863438877,-406.9956485,0.00021644,2]
[323274504,1713863438886,-203.544759,0.00021644,2]
[323274506,1713863438897,-420.0,0.00021777,2]
[323274509,1713863438906,-153.0,0.00021836,2]
[323274510,1713863438916,-153.0,0.00021836,2]
[323274512,1713863438925,-406.901779,0.00021836,2]
[323274514,1713863438934,-153.0,0.00021836,2]
[323274516,1713863438943,-1065.96,0.00021906,3]
[323274518,1713863438952,-73081.97756939,0.00021916,2]
[323274520,1713863438962,-553.83136724,0.00021916,2]
[323274522,1713863438971,-180.29576103,0.00021916,2]
[323274525,1713863438980,-500.0,0.00021916,2]
[323274527,1713863438990,-197.96771572,0.00021916,2]
[323274529,1713863438999,-176.06799262,0.00021916,2]
[323274531,1713863439008,-500.0,0.00021917,2]
[323274533,1713863439017,-500.0,0.00021917,2]
[323274535,1713863439027,-322.84488904,0.00021917,2]
[323274538,1713863439037,-483.97185768,0.00021917,2]
[323274541,1713863439047,-500.0,0.00021917,2]
[323274543,1713863439056,-500.0,0.00021917,2]
[323274545,1713863439066,-500.0,0.00021917,2]
[323274547,1713863439075,-492.50350801,0.00021917,2]
[323274549,1713863439084,-502.23074182,0.00021917,2]
[323274551,1713863439095,-500.0,0.00021917,2]
[323274553,1713863439105,-500.0,0.00021917,2]
[323274555,1713863439116,-500.0,0.00021917,2]
[323274557,1713863439127,-500.0,0.00021917,2]
[323274559,1713863439137,-501.41139841,0.00021917,2]
[323274561,1713863439147,-500.0,0.00021917,2]
[323274563,1713863439156,-500.0,0.00021917,2]
[323274565,1713863439165,-500.0,0.00021917,2]
[323274567,1713863439174,-636.69,0.00021917,2]
[323274569,1713863439184,-500.0,0.00021917,2]
[323274571,1713863439193,-497.80400615,0.00021917,2]
[323274573,1713863439202,-500.0,0.00021917,2]
[323274575,1713863439211,-593.98005266,0.00021917,2]
[323274577,1713863439220,-500.0,0.00021917,2]
[323274579,1713863439229,-500.0,0.00021917,2]
[323274581,1713863439239,-500.0,0.00021917,2]
[323274583,1713863439248,-500.0,0.00021917,2]
[323274585,1713863439257,-500.0,0.00021917,2]
[323274587,1713863439266,-500.0,0.00021917,2]
[323274588,1713863439277,-500.0,0.00021917,2]
[323274590,1713863439287,-590.56174095,0.00021917,2]
[323274592,1713863439298,-500.0,0.00021917,2]
[323274595,1713863439308,-503.99016589,0.00021917,2]
[323274597,1713863439317,-504.34163219,0.00021917,2]
[323274598,1713863439326,-500.0,0.00021917,2]
[323274601,1713863439337,-500.0,0.00021917,2]
[323274603,1713863439351,-500.0,0.00021917,2]
[323274605,1713863439365,-500.0,0.00021917,2]
[323274608,1713863439383,-500.0,0.00021917,2]
[323274610,1713863439396,-500.0,0.00021917,2]
[323274612,1713863439408,-500.0,0.00021917,2]
[323274615,1713863439422,-507.17171376,0.00021917,2]
[323274617,1713863439436,-562.44,0.00021917,2]
[323274620,1713863439451,-501.68120795,0.00021917,2]
[323274622,1713863439464,-500.0,0.00021917,2]
[323274625,1713863439478,-500.0,0.00021917,2]
[323274627,1713863439490,-439.43905108,0.00021917,2]
[323274629,1713863439502,-500.0,0.00021917,2]
[323274631,1713863439515,-500.0,0.00021917,2]
[323274634,1713863439528,-500.0,0.00021917,2]
[323274636,1713863439541,-500.0,0.00021917,2]
[323274638,1713863439555,-500.0,0.00021917,2]
[323274642,1713863439577,-500.0,0.00021917,2]
[323274644,1713863439596,-500.0,0.00021917,2]
[323274647,1713863439612,-500.0,0.00021917,2]
[323274650,1713863439633,-500.00000046,0.00021917,2]
[323274653,1713863439649,-392.66360085,0.00021917,2]
[323274656,1713863439670,-500.0,0.00021917,2]
[323274659,1713863439688,-500.0,0.00021917,2]
[323274661,1713863439701,-500.0,0.00021917,2]
[323274663,1713863439717,-500.0,0.00021917,2]
[323274666,1713863439731,-500.0,0.00021917,2]
[323274669,1713863439747,-500.0,0.00021917,2]
[323274671,1713863439763,-200.96345925,0.00021917,2]
[323274674,1713863439779,-500.0,0.00021917,2]
[323274676,1713863439791,-500.0,0.00021917,2]
[323274678,1713863439802,-500.0,0.00021917,2]
[323274680,1713863439813,-500.0,0.00021917,2]
[323274683,1713863439826,-500.0,0.00021917,2]
[323274685,1713863439839,-500.0,0.00021917,2]
[323274688,1713863439853,-500.0,0.00021917,2]
[323274691,1713863439870,-500.0,0.00021917,2]
[323274693,1713863439882,-500.0,0.00021917,2]
[323274695,1713863439893,-500.0,0.00021917,2]
[323274697,1713863439904,-500.0,0.00021917,2]
[323274699,1713863439915,-398.72465794,0.00021917,2]
[323274702,1713863439929,-729.59,0.00021917,2]
[323274704,1713863439943,-500.0,0.00021917,2]
[323274707,1713863439959,-500.0,0.00021917,2]
[323274709,1713863439971,-500.0,0.00021917,2]
[323274712,1713863439984,-500.0,0.00021917,2]
[323274714,1713863439997,-500.0,0.00021917,2]
[323274716,1713863440009,-500.0,0.00021917,2]
[323274719,1713863440021,-500.0,0.00021917,2]
[323274721,1713863440033,-500.0,0.00021917,2]
[323274723,1713863440044,-500.0,0.00021917,2]
[323274725,1713863440056,-500.0,0.00021917,2]
[323274728,1713863440067,-500.0,0.00021917,2]
[323274730,1713863440079,-500.0,0.00021917,2]
[323274732,1713863440090,-500.0,0.00021917,2]
[323274735,1713863440102,-504.19355796,0.00021917,2]
[323274737,1713863440116,-500.0,0.00021917,2]
[323274739,1713863440129,-500.0,0.00021917,2]
[323274741,1713863440140,-500.86560246,0.00021917,2]
[323274743,1713863440151,-504.22410649,0.00021917,2]
[323274746,1713863440164,-513.06151119,0.00021917,2]
[323274748,1713863440175,-500.0,0.00021917,2]
[323274750,1713863440186,-489.37668068,0.00021917,2]
[323274835,1713863441237,-532.98,0.00021906,3]
[323274837,1713863441247,-10.62331932,0.00021917,2]
[323274839,1713863441257,-500.0,0.00021917,2]
[323274841,1713863441267,-500.0,0.00021917,2]
[323274843,1713863441278,-500.0,0.00021917,2]
[323274845,1713863441288,-500.0,0.00021917,2]
[323274847,1713863441297,-503.27745387,0.00021917,2]
[323274849,1713863441306,-515.38583008,0.00021917,2]
[323274851,1713863441315,-500.0,0.00021917,2]
[323274853,1713863441325,-500.0,0.00021917,2]
[323274855,1713863441335,-500.0,0.00021917,2]
[323274857,1713863441345,-507.19889557,0.00021917,2]
[323274859,1713863441353,-708.62,0.00021917,2]
[323274861,1713863441362,-500.0,0.00021917,2]
[323274863,1713863441373,-500.0,0.00021917,2]
[323274865,1713863441382,-513.28079767,0.00021917,2]
[323274867,1713863441391,-500.0,0.00021917,2]
[323274869,1713863441400,-500.0,0.00021917,2]
[323274871,1713863441409,-500.0,0.00021917,2]
[323274873,1713863441418,-500.0,0.00021917,2]
[323274875,1713863441427,-500.0,0.00021917,2]
[323274876,1713863441436,-500.0,0.00021917,2]
[323274878,1713863441445,-500.0,0.00021917,2]
[323274881,1713863441455,-1198.51,0.00021917,2]
[323274882,1713863441465,-500.72460198,0.00021917,2]
[323274884,1713863441476,-500.0,0.00021917,2]
[323274886,1713863441487,-500.0,0.00021917,2]
[323274889,1713863441498,-1014.13242916,0.00021917,2]
[323274890,1713863441510,-500.0,0.00021917,2]
[323274893,1713863441520,-500.0,0.00021917,2]
[323274894,1713863441532,-500.0,0.00021917,2]
[323274897,1713863441541,-500.0,0.00021917,2]
[323274899,1713863441552,-500.0,0.00021917,2]
[323274900,1713863441562,-688.42,0.00021917,2]
[323274902,1713863441572,-500.0,0.00021917,2]
[323274904,1713863441582,-500.0,0.00021917,2]
[323274906,1713863441592,-500.0,0.00021917,2]
[323274908,1713863441601,-500.0,0.00021917,2]
[323274910,1713863441611,-500.0,0.00021917,2]
[323274912,1713863441622,-500.28006798,0.00021917,2]
[323274914,1713863441631,-500.0,0.00021917,2]
[323274916,1713863441641,-500.0,0.00021917,2]
[323274918,1713863441651,-500.0,0.00021917,2]
[323274920,1713863441661,-504.90486001,0.00021917,2]
[323274922,1713863441671,-500.0,0.00021917,2]
[323274924,1713863441681,-579.79565403,0.00021917,2]
[323274926,1713863441691,-588.97,0.00021917,2]
[323274928,1713863441701,-500.0,0.00021917,2]
[323274930,1713863441710,-500.0,0.00021917,2]
[323274932,1713863441721,-500.0,0.00021917,2]
[323274933,1713863441733,-500.0,0.00021917,2]
[323274935,1713863441743,-500.0,0.00021917,2]
[323274937,1713863441753,-500.0,0.00021917,2]
[323274940,1713863441764,-500.0,0.00021917,2]
[323274942,1713863441776,-500.0,0.00021917,2]
[323274944,1713863441786,-500.0,0.00021917,2]
[323274946,1713863441795,-500.0,0.00021917,2]
[323274948,1713863441804,-500.0,0.00021917,2]
[323274950,1713863441813,-1122.47,0.00021917,2]
[323274952,1713863441822,-500.0,0.00021917,2]
[323274954,1713863441834,-732.46,0.00021917,2]
[323274956,1713863441844,-500.0,0.00021917,2]
[323274957,1713863441854,-500.0,0.00021917,2]
[323274960,1713863441865,-500.0,0.00021917,2]
[323274961,1713863441877,-500.0,0.00021917,2]
[323274963,1713863441886,-500.0,0.00021917,2]
[323274965,1713863441896,-500.0,0.00021917,2]
[323274968,1713863441906,-500.0,0.00021917,2]
[323274970,1713863441916,-500.0,0.00021917,2]
[323274972,1713863441928,-500.0,0.00021917,2]
[323274974,1713863441937,-500.0,0.00021917,2]
[323274976,1713863441947,-675.61,0.00021917,2]
[323274978,1713863441958,-500.0,0.00021917,2]
[323274980,1713863441968,-500.0,0.00021917,2]
[323274982,1713863441977,-500.0,0.00021917,2]
[323274984,1713863441987,-500.0,0.00021917,2]
[323274986,1713863441997,-690.46,0.00021917,2]
[323274988,1713863442007,-500.0,0.00021917,2]
[323274990,1713863442016,-500.0,0.00021917,2]
[323274992,1713863442026,-500.0,0.00021917,2]
[323274994,1713863442037,-500.0,0.00021917,2]
[323274996,1713863442046,-500.0,0.00021917,2]
[323274998,1713863442057,-500.0,0.00021917,2]
[323275000,1713863442067,-500.0,0.00021917,2]
[323275002,1713863442077,-513.53,0.00021917,2]
[323275004,1713863442087,-500.0,0.00021917,2]
[323275006,1713863442098,-633.57,0.00021917,2]
[323275008,1713863442108,-484.46905658,0.00021917,2]
[323275010,1713863442122,-500.0,0.00021917,2]
[323275012,1713863442134,-687.84,0.00021917,2]
[323275014,1713863442144,-503.2572355,0.00021917,2]
[323275016,1713863442153,-500.0,0.00021917,2]
[323275018,1713863442162,-500.0,0.00021917,2]
[323275020,1713863442172,-500.0,0.00021917,2]
[323275022,1713863442181,-1567.08,0.00021917,2]
[323275024,1713863442191,-650.13,0.00021917,2]
[323275026,1713863442202,-500.0,0.00021917,2]
[323275027,1713863442212,-500.3855911,0.00021917,2]
[323275029,1713863442221,-500.0,0.00021917,2]
[323275031,1713863442232,-500.63835467,0.00021917,2]
[323275034,1713863442242,-742.0,0.00021917,2]
[323275036,1713863442253,-500.0,0.00021917,2]
[323275037,1713863442264,-199.55375685,0.00021917,2]
[323275039,1713863442275,-495.42798901,0.00021917,2]
[323275041,1713863442287,-2044.68,0.00021917,2]
[323275043,1713863442297,-500.0,0.00021917,2]
[323275045,1713863442307,-500.0,0.00021917,2]
[323275047,1713863442316,-178.51421196,0.00021917,2]
[323275049,1713863442325,-501.1387488,0.00021917,2]
[323275051,1713863442337,-773.98,0.00021917,2]
[323275053,1713863442347,-500.33357325,0.00021917,2]
[323275056,1713863442357,-500.53775948,0.00021917,2]
[323275057,1713863442368,-500.0,0.00021917,2]
[323275060,1713863442379,-500.0,0.00021917,2]
[323275061,1713863442388,-1108.21,0.00021917,2]
[323275064,1713863442399,-500.0,0.00021917,2]
[323275066,1713863442412,-1310.84,0.00021917,2]
[323275068,1713863442421,-500.0,0.00021917,2]
[323275070,1713863442431,-677.98,0.00021917,2]
[323275072,1713863442440,-500.0,0.00021917,2]
[323275074,1713863442449,-500.0,0.00021917,2]
[323275076,1713863442459,-151.0,0.00021917,2]
[323275078,1713863442468,-500.0,0.00021917,2]
[323275080,1713863442477,-500.0,0.00021917,2]
[323275082,1713863442487,-23347.97,0.00021917,2]
[323275084,1713863442496,-505.4584757,0.00021917,2]
[323275086,1713863442505,-500.0,0.00021917,2]
[323275088,1713863442515,-155.73840481,0.00021917,2]
[323275090,1713863442524,-501.73691034,0.00021917,2]
[323275092,1713863442534,-500.4599349,0.00021917,2]
[323275094,1713863442543,-500.0,0.00021917,2]
[323275096,1713863442553,-1154.86,0.00021917,2]
[323275098,1713863442562,-500.0,0.00021917,2]
[323275100,1713863442572,-1707.2,0.00021917,2]
[323275102,1713863442581,-620.91,0.00021917,2]
[323275104,1713863442591,-500.0,0.00021917,2]
[323275106,1713863442601,-368.8059513,0.00021917,2]
[323275108,1713863442611,-500.0,0.00021917,2]
[323275110,1713863442621,-503.27970568,0.00021917,2]
[323275112,1713863442631,-500.0,0.00021917,2]
[323275114,1713863442640,-979.69,0.00021917,2]
[323275116,1713863442650,-1255.28,0.00021917,2]
[323275118,1713863442659,-500.0,0.00021917,2]
[323275120,1713863442668,-538.67,0.00021917,2]
[323275122,1713863442677,-500.0,0.00021917,2]
[323275124,1713863442687,-500.0,0.00021917,2]
[323275126,1713863442696,-500.0,0.00021917,2]
[323275128,1713863442706,-1446.6,0.00021917,2]
[323275130,1713863442715,-1944.83663723,0.00021917,2]
[323275133,1713863442738,-189.19295912,0.00019402,2]
[323275135,1713863442748,-371.22336277,0.00021917,2]
[323275137,1713863442759,-500.39,0.00021917,2]
[323275139,1713863442769,-399.33150137,0.00021917,2]
[323275141,1713863442780,-260.82431925,0.00021917,2]
[323275143,1713863442790,-500.0,0.00021917,2]
[323275155,1713863442896,-500.0,0.00021917,2]
[323275157,1713863442907,-500.0,0.00021917,2]
[323275159,1713863442917,-1241.54,0.00021917,2]
[323275162,1713863442926,-500.0,0.00021917,2]
[323275165,1713863442935,-500.0,0.00021917,2]
[323275168,1713863442944,-500.0,0.00021917,2]
[323275171,1713863442954,-500.0,0.00021917,2]
[323275174,1713863442963,-500.0,0.00021917,2]
[323275177,1713863442972,-500.0,0.00021917,2]
[323275180,1713863442982,-500.0,0.00021917,2]
[323275182,1713863442991,-10255.35,0.00021917,2]
[323275184,1713863443000,-500.0,0.00021917,2]
[323275186,1713863443010,-2496.53,0.00021917,2]
[323275188,1713863443019,-500.0,0.00021917,2]
[323275190,1713863443028,-500.0,0.00021917,2]
[323275192,1713863443037,-500.0,0.00021917,2]
[323275194,1713863443046,-500.0,0.00021917,2]
[323275196,1713863443055,-500.0,0.00021917,2]
[323275197,1713863443064,-500.0,0.00021917,2]
[323275200,1713863443074,-657.53,0.00021917,2]
[323275201,1713863443083,-1765.06,0.00021917,2]
[323275204,1713863443092,-500.0,0.00021917,2]
[323275206,1713863443102,-508.80626197,0.00021917,2]
[323275208,1713863443112,-1236.64,0.00021917,2]
[323275210,1713863443128,-500.0,0.00021917,2]
[323275213,1713863443138,-506.35109438,0.00021917,2]
[323275215,1713863443147,-500.0,0.00021917,2]
[323275217,1713863443158,-500.0,0.00021917,2]
[323275220,1713863443166,-500.0,0.00021917,2]
[323275223,1713863443176,-500.0,0.00021917,2]
[323275225,1713863443186,-500.0,0.00021917,2]
[323275228,1713863443196,-1762.35,0.00021917,2]
[323275232,1713863443205,-500.0,0.00021917,2]
[323275236,1713863443214,-500.0,0.00021917,2]
[323275239,1713863443224,-511.03535007,0.00021917,2]
[323275241,1713863443233,-504.26873088,0.00021917,2]
[323275243,1713863443243,-657.55,0.00021917,2]
[323275245,1713863443252,-500.0,0.00021917,2]
[323275247,1713863443261,-500.0,0.00021917,2]
[323275249,1713863443271,-500.2727508,0.00021917,2]
[323275251,1713863443280,-500.0,0.00021917,2]
[323275253,1713863443290,-513.54773408,0.00021917,2]
[323275255,1713863443299,-812.12,0.00021917,2]
[323275257,1713863443308,-3681.92,0.00021917,2]
[323275259,1713863443318,-315.25766875,0.00021917,2]
[323275261,1713863443326,-500.0,0.00021917,2]
[323275263,1713863443335,-935.11,0.00021917,2]
[323275265,1713863443344,-1884.4,0.00021917,2]
[323275267,1713863443353,-500.0,0.00021917,2]
[323275269,1713863443363,-500.0,0.00021917,2]